[Event "12th Asrian Memorial 2019"]
[Site "Yerevan"]
[Date "2019.06.19"]
[Round "9.11"]
[White "Mnatsakanian, Arsen"]
[Black "Sargsyan, Tigran R."]
[Result "0-1"]
[ECO "C02"]
[WhiteElo "2255"]
[BlackElo "2367"]
[Annotator "NA"]
[PlyCount "74"]
[EventDate "2019.06.11"]
[EventType "swiss"]
[EventCountry "ARM"]
[SourceTitle "playchess.com"]
[Source "ChessBase"]
[SourceQuality "1"]
[TimeControl "40/5400+30:1800+30"]

1. e4 {[%emt 0:00:44]} e6 {[%emt 0:00:00]} 2. d4 {[%emt 0:00:03]} d5 {[%emt 0:00:00]} 3. e5 {[%emt 0:00:01]} c5 {[%emt 0:00:00]} 4. c3 {[%emt 0:00:02]} Nc6 {[%emt 0:00:02]} 5. a3 {[%emt 0:00:04]} Qb6 {[%emt 0:00:08]} 6. Nf3 {[%emt 0:00:17]} Bd7 {[%emt 0:00:12]} 7. Be2 {[%emt 0:06:33]} Rc8 {[%emt 0:08:25]} 8. O-O {[%emt 0:00:14]} cxd4 {[%emt 0:01:47]} 9. cxd4 {[%emt 0:00:05]} Na5 {[%emt 0:01:30]} 10. Nbd2 {[%emt 0:01:58]} Ne7 {[%emt 0:08:58]} 11. b4 {[%emt 0:02:25]} Nc4 {[%emt 0:02:32]} 12. Qb3 {[%emt 0:02:11]} Qa6 {[%emt 0:02:18]} 13. Bd3 {[%emt 0:02:35]} Ba4 {[%emt 0:03:29]} 14. Qb1 {[%emt 0:00:38]} b5 {[%emt 0:05:36]} 15. h4 {[%emt 0:01:46]} Qb6 {[%emt 0:04:36]} 16. h5 {[%emt 0:12:22]} Nc6 {[%emt 0:02:31]} 17. Bxh7 {[%emt 0:07:21]} Nxd4 {[%emt 0:00:53]} 18. Ng5 {[%emt 0:08:32]} Ne2+ {[%emt 0:10:15]} 19. Kh1 {[%emt 0:00:09]} Nxe5 {[%emt 0:05:18]} 20. Bb2 {[%emt 0:00:27]} Ng4 {[%emt 0:01:57]} 21. Qe1 {[%emt 0:09:14]} Nf4 {[%emt 0:03:33]} 22. Rc1 {[%emt 0:08:46]} Rd8 {[%emt 0:02:34]} 23. h6 {[%emt 0:06:14]} Rxh7 {[%emt 0:05:54]} 24. Nxh7 {[%emt 0:00:04]} e5 {[%emt 0:00:39]} 25. Nf3 {[%emt 0:00:02]} Qxh6+ {[%emt 0:01:44]} 26. Kg1 {[%emt 0:00:03]} Qxh7 {[%emt 0:02:36]} 27. Bxe5 {[%emt 0:02:57]} Nd3 {[%emt 0:01:56]} 28. Qc3 {[%emt 0:08:46]} Ndxe5 {[%emt 0:00:25]} 29. Rfe1 {[%emt 0:00:06]} f6 {[%emt 0:02:37]} 30. Nxe5 {[%emt 0:04:35]} Qh2+ {[%emt 0:01:37]} 31. Kf1 {[%emt 0:00:03]} Nxe5 {[%emt 0:00:24]} 32. Qd4 {[%emt 0:01:13]} Bb3 {[%emt 0:01:10]} 33. f4 {[%emt 0:00:19]} Bc4+ {[%emt 0:01:45]} 34. Kf2 {[%emt 0:00:04]} Qh4+ {[%emt 0:00:57]} 35. Kg1 {[%emt 0:00:12]} Be7 {[%emt 0:00:53]} 36. Re3 {[%emt 0:00:09]} Nc6 {[%emt 0:02:13]} 37. Qc5 {[%emt 0:01:20]} Kd7 {[%emt 0:00:21]} 0-1

[Event "12th Asrian Memorial 2019"]
[Site "Yerevan"]
[Date "2019.06.19"]
[Round "9.12"]
[White "Hoghmrtsyan, Artur"]
[Black "Ghukasyan, Siranush"]
[Result "0-1"]
[ECO "C50"]
[WhiteElo "2309"]
[BlackElo "2255"]
[Annotator "NA"]
[PlyCount "78"]
[EventDate "2019.06.11"]
[EventType "swiss"]
[EventCountry "ARM"]
[SourceTitle "playchess.com"]
[Source "ChessBase"]
[SourceQuality "1"]
[TimeControl "40/5400+30:1800+30"]

1. e4 {[%emt 0:00:00]} e5 {[%emt 0:00:00]} 2. Nf3 {[%emt 0:00:00]} Nc6 {[%emt 0:00:00]} 3. Bc4 {[%emt 0:00:06]} Bc5 {[%emt 0:00:00]} 4. d3 {[%emt 0:00:29]} Nf6 {[%emt 0:00:00]} 5. Bg5 {[%emt 0:02:27]} h6 {[%emt 0:01:26]} 6. Bh4 {[%emt 0:00:07]} g5 {[%emt 0:01:07]} 7. Bg3 {[%emt 0:00:05]} d6 {[%emt 0:00:16]} 8. c3 {[%emt 0:01:47]} O-O {[%emt 0:06:41]} 9. a4 {[%emt 0:11:25]} a5 {[%emt 0:00:28]} 10. Na3 {[%emt 0:08:41]} Ne7 {[%emt 0:02:45]} 11. Nc2 {[%emt 0:03:16]} Ba7 {[%emt 0:04:11]} 12. O-O {[%emt 0:01:37]} Ng6 {[%emt 0:00:11]} 13. Re1 {[%emt 0:05:15]} Nh7 {[%emt 0:29:02]} 14. h3 {[%emt 0:10:45]} h5 {[%emt 0:10:58]} 15. d4 {[%emt 0:02:01]} g4 {[%emt 0:03:53]} 16. hxg4 {[%emt 0:00:16]} hxg4 {[%emt 0:00:17]} 17. Nh2 {[%emt 0:01:36]} Qg5 {[%emt 0:00:59]} 18. dxe5 {[%emt 0:18:44]} dxe5 {[%emt 0:01:05]} 19. Ne3 {[%emt 0:00:18]} Nf6 {[%emt 0:01:18]} 20. Qc2 {[%emt 0:01:37]} Nh5 {[%emt 0:08:09]} 21. Nhf1 {[%emt 0:00:16]} Ngf4 {[%emt 0:00:55]} 22. Rad1 {[%emt 0:04:08]} Be6 {[%emt 0:01:36]} 23. Bxe6 {[%emt 0:01:47]} fxe6 {[%emt 0:00:00]} 24. Rd7 {[%emt 0:07:46]} Rf7 {[%emt 0:01:38]} 25. Rxf7 {[%emt 0:04:18]} Kxf7 {[%emt 0:00:49]} 26. Qd1 {[%emt 0:03:14]} Nf6 {[%emt 0:00:56]} 27. Nc4 {[%emt 0:00:30]} Rh8 {[%emt 0:00:52]} 28. Qd2 {[%emt 0:01:51]} Qh6 {[%emt 0:03:28]} 29. Nh2 {[%emt 0:01:46]} Kg7 {[%emt 0:10:49]} 30. Rd1 {[%emt 0:00:38]} Bd4 {[%emt 0:06:22]} 31. cxd4 {[%emt 0:05:28]} Nxe4 {[%emt 0:00:07]} 32. Qe3 {[%emt 0:00:18]} Nxg3 {[%emt 0:00:16]} 33. Qxe5+ {[%emt 0:02:08]} Kg8 {[%emt 0:00:25]} 34. fxg3 {[%emt 0:00:10]} Qxh2+ {[%emt 0:00:05]} 35. Kf2 {[%emt 0:00:03]} Qxg2+ {[%emt 0:00:05]} 36. Ke3 {[%emt 0:00:07]} Nd5+ {[%emt 0:01:43]} 37. Kd3 {[%emt 0:00:06]} Nb4+ {[%emt 0:00:03]} 38. Ke3 {[%emt 0:00:09]} Qf3+ {[%emt 0:00:05]} 39. Kd2 {[%emt 0:00:06]} Qd3+ {[%emt 0:00:12]} 0-1

[Event "12th Asrian Memorial 2019"]
[Site "Yerevan"]
[Date "2019.06.19"]
[Round "9.13"]
[White "Yeritsyan, Hayk"]
[Black "Barseghyan, Armen Ar."]
[Result "1/2-1/2"]
[ECO "A66"]
[WhiteElo "2208"]
[BlackElo "2294"]
[Annotator "NA"]
[PlyCount "109"]
[EventDate "2019.06.11"]
[EventType "swiss"]
[EventCountry "ARM"]
[SourceTitle "playchess.com"]
[Source "ChessBase"]
[SourceQuality "1"]
[TimeControl "40/5400+30:1800+30"]

1. d4 {[%emt 0:00:00]} Nf6 {[%emt 0:00:00]} 2. c4 {[%emt 0:00:00]} c5 {[%emt 0:00:31]} 3. d5 {[%emt 0:00:16]} e6 {[%emt 0:00:16]} 4. Nc3 {[%emt 0:00:12]} exd5 {[%emt 0:00:10]} 5. cxd5 {[%emt 0:00:10]} d6 {[%emt 0:00:11]} 6. e4 {[%emt 0:00:10]} g6 {[%emt 0:00:19]} 7. f4 {[%emt 0:00:54]} Bg7 {[%emt 0:01:14]} 8. e5 {[%emt 0:02:34]} Nfd7 {[%emt 0:01:58]} 9. Nb5 {[%emt 0:00:31]} dxe5 {[%emt 0:00:12]} 10. Nd6+ {[%emt 0:00:13]} Ke7 {[%emt 0:00:06]} 11. Nxc8+ {[%emt 0:00:22]} Qxc8 {[%emt 0:00:05]} 12. Nf3 {[%emt 0:00:09]} Re8 {[%emt 0:04:39]} 13. f5 {[%emt 0:02:16]} Kf8 {[%emt 0:06:29]} 14. Ng5 {[%emt 0:01:24]} Nf6 {[%emt 0:06:17]} 15. fxg6 {[%emt 0:00:44]} hxg6 {[%emt 0:00:40]} 16. Bc4 {[%emt 0:06:40]} b5 {[%emt 0:25:43]} 17. Bxb5 {[%emt 0:00:11]} Rd8 {[%emt 0:00:10]} 18. O-O {[%emt 0:09:54]} c4 {[%emt 0:02:09]} 19. Qf3 {[%emt 0:05:18]} Kg8 {[%emt 0:00:39]} 20. Be3 {[%emt 0:06:00]} Qg4 {[%emt 0:07:26]} 21. h3 {[%emt 0:20:40]} Qxf3 {[%emt 0:01:20]} 22. Rxf3 {[%emt 0:01:03]} e4 {[%emt 0:01:47]} 23. Rf2 {[%emt 0:01:23]} Nxd5 {[%emt 0:02:19]} 24. Rd1 {[%emt 0:08:39]} Nc6 {[%emt 0:01:42]} 25. Rxd5 {[%emt 0:03:25]} Rxd5 {[%emt 0:00:03]} 26. Bxc6 {[%emt 0:00:10]} Rd1+ {[%emt 0:00:02]} 27. Kh2 {[%emt 0:00:05]} Rb8 {[%emt 0:00:22]} 28. Nxe4 {[%emt 0:13:29]} Be5+ {[%emt 0:09:44]} 29. Bf4 {[%emt 0:00:08]} Bxf4+ {[%emt 0:00:04]} 30. Rxf4 {[%emt 0:00:03]} Rxb2 {[%emt 0:00:08]} 31. Bd5 {[%emt 0:01:42]} c3 {[%emt 0:06:48]} 32. Nxc3 {[%emt 0:01:21]} Rdd2 {[%emt 0:00:08]} 33. Rg4 {[%emt 0:06:39]} Kg7 {[%emt 0:02:19]} 34. Na4 {[%emt 0:04:36]} f5 {[%emt 0:01:42]} 35. Rc4 {[%emt 0:00:04]} Rbc2 {[%emt 0:00:10]} 36. Rxc2 {[%emt 0:00:11]} Rxc2 {[%emt 0:00:01]} 37. Bb3 {[%emt 0:00:08]} Rd2 {[%emt 0:00:03]} 38. Kg3 {[%emt 0:01:12]} g5 {[%emt 0:01:25]} 39. Nc5 {[%emt 0:00:26]} Kf6 {[%emt 0:01:07]} 40. Kf3 {[%emt 0:00:00]} Ke5 {[%emt 0:00:00]} 41. g3 {[%emt 0:08:11]} a5 {[%emt 0:08:16]} 42. Ke3 {[%emt 0:00:49]} Rg2 {[%emt 0:03:06]} 43. Nd3+ {[%emt 0:00:17]} Kf6 {[%emt 0:00:18]} 44. Kf3 {[%emt 0:00:17]} Rd2 {[%emt 0:00:10]} 45. Ke3 {[%emt 0:01:00]} Rg2 {[%emt 0:00:07]} 46. Kf3 {[%emt 0:00:02]} Rd2 {[%emt 0:00:04]} 47. Nf2 {[%emt 0:02:02]} a4 {[%emt 0:01:30]} 48. Bxa4 {[%emt 0:00:30]} Rxa2 {[%emt 0:00:02]} 49. Bb5 {[%emt 0:00:17]} Ra3+ {[%emt 0:00:20]} 50. Bd3 {[%emt 0:01:41]} Ke5 {[%emt 0:01:54]} 51. Ke3 {[%emt 0:02:07]} Rb3 {[%emt 0:02:49]} 52. h4 {[%emt 0:01:19]} gxh4 {[%emt 0:01:42]} 53. gxh4 {[%emt 0:00:04]} Rb4 {[%emt 0:02:10]} 54. h5 {[%emt 0:00:03]} Rh4 {[%emt 0:00:03]} 55. Be2 {[%emt 0:00:03]} 1/2-1/2